[Event "12th Asrian Memorial 2019"]
[Site "Yerevan"]
[Date "2019.06.14"]
[Round "4.1"]
[White "Onischuk, Vladimir"]
[Black "Baghdasaryan, Vahe"]
[Result "1-0"]
[ECO "A04"]
[WhiteElo "2630"]
[BlackElo "2357"]
[Annotator "RC"]
[PlyCount "91"]
[EventDate "2019.06.11"]
[EventType "swiss"]
[EventCountry "ARM"]
[SourceTitle "playchess.com"]
[Source "ChessBase"]
[SourceQuality "1"]
[TimeControl "40/5400+30:1800+30"]

1. Nf3 {[%emt 0:00:00]} c5 {[%emt 0:01:38]} 2. g3 {[%emt 0:00:04]} Nc6 {[%emt 0:00:17]} 3. Bg2 {[%emt 0:00:09]} g6 {[%emt 0:00:57]} 4. d4 {[%emt 0:00:33]} cxd4 {[%emt 0:00:08]} 5. Nxd4 {[%emt 0:00:03]} Bg7 {[%emt 0:00:04]} 6. Nb3 {[%emt 0:00:05]} d6 {[%emt 0:01:04]} 7. Nc3 {[%emt 0:00:38]} h5 {[%emt 0:05:29]} 8. h3 {[%emt 0:01:29]} Nf6 {[%emt 0:06:18]} 9. e4 {[%emt 0:07:06]} Bd7 {[%emt 0:04:34]} 10. O-O {[%emt 0:06:58]} Ne5 {[%emt 0:05:42]} 11. Qe2 {[%emt 0:07:19]} h4 {[%emt 0:21:53]} 12. f4 {[%emt 0:07:01]} Nh5 {[%emt 0:01:17]} 13. gxh4 {[%emt 0:22:56]} Ng3 {[%emt 0:02:47]} 14. Qf2 {[%emt 0:01:23]} Nxf1 {[%emt 0:00:15]} 15. fxe5 {[%emt 0:00:08]} Bxe5 {[%emt 0:00:48]} 16. Bf4 {[%emt 0:16:48]} Bxf4 {[%emt 0:08:22]} 17. Qxf4 {[%emt 0:00:18]} Qb6+ {[%emt 0:05:21]} 18. Kxf1 {[%emt 0:00:16]} Rc8 {[%emt 0:00:06]} 19. Ke2 {[%emt 0:10:56]} a5 {[%emt 0:05:56]} 20. Kd2 {[%emt 0:01:13]} a4 {[%emt 0:08:59]} 21. Nd5 {[%emt 0:00:10]} Qa7 {[%emt 0:00:19]} 22. Rf1 {[%emt 0:01:07]} Be6 {[%emt 0:00:05]} 23. Nc1 {[%emt 0:00:50]} a3 {[%emt 0:01:39]} 24. b3 {[%emt 0:01:23]} Qd4+ {[%emt 0:03:57]} 25. Nd3 {[%emt 0:00:12]} Rh5 {[%emt 0:00:21]} 26. Qf2 {[%emt 0:03:39]} Qh8 {[%emt 0:06:55]} 27. N5f4 {[%emt 0:04:47]} Rxh4 {[%emt 0:06:03]} 28. Nxe6 {[%emt 0:01:06]} fxe6 {[%emt 0:00:09]} 29. e5 {[%emt 0:02:10]} dxe5 {[%emt 0:01:32]} 30. Bxb7 {[%emt 0:01:32]} Qh6+ {[%emt 0:00:55]} 31. Kd1 {[%emt 0:00:20]} Qh5+ {[%emt 0:01:01]} 32. Bf3 {[%emt 0:00:29]} Qh8 {[%emt 0:00:32]} 33. Bg4 {[%emt 0:00:38]} Rxg4 {[%emt 0:00:17]} 34. hxg4 {[%emt 0:00:23]} e4 {[%emt 0:00:03]} 35. Nc5 {[%emt 0:00:29]} Qg7 {[%emt 0:01:14]} 36. Ke2 {[%emt 0:00:23]} Rc6 {[%emt 0:00:27]} 37. b4 {[%emt 0:01:10]} Rd6 {[%emt 0:00:12]} 38. Qf4 {[%emt 0:00:40]} e3 {[%emt 0:00:25]} 39. Qxe3 {[%emt 0:00:52]} Qb2 {[%emt 0:00:15]} 40. Qe4 {[%emt 0:00:00]} Rd5 {[%emt 0:00:00]} 41. Qxg6+ {[%emt 0:02:43]} Kd8 {[%emt 0:05:06]} 42. Rf8+ {[%emt 0:00:10]} Kc7 {[%emt 0:00:01]} 43. Nxe6+ {[%emt 0:00:08]} Kb7 {[%emt 0:00:18]} 44. Nc5+ {[%emt 0:00:25]} Rxc5 {[%emt 0:01:08]} 45. bxc5 {[%emt 0:00:05]} Qe5+ {[%emt 0:00:16]} 46. Kf3 {[%emt 0:00:05]} 1-0

[Event "12th Asrian Memorial 2019"]
[Site "Yerevan"]
[Date "2019.06.14"]
[Round "4.2"]
[White "Hayrapetyan, Hovik"]
[Black "Vardanian, Haik G."]
[Result "1-0"]
[ECO "A30"]
[WhiteElo "2449"]
[BlackElo "2357"]
[Annotator "NA"]
[PlyCount "157"]
[EventDate "2019.06.11"]
[EventType "swiss"]
[EventCountry "ARM"]
[SourceTitle "playchess.com"]
[Source "ChessBase"]
[SourceQuality "1"]
[TimeControl "40/5400+30:1800+30"]

1. Nf3 {[%emt 0:00:12]} Nf6 {[%emt 0:00:00]} 2. c4 {[%emt 0:01:25]} e6 {[%emt 0:01:22]} 3. g3 {[%emt 0:03:34]} b6 {[%emt 0:02:30]} 4. Bg2 {[%emt 0:00:11]} Bb7 {[%emt 0:00:04]} 5. O-O {[%emt 0:00:17]} c5 {[%emt 0:01:01]} 6. Nc3 {[%emt 0:01:32]} Be7 {[%emt 0:00:29]} 7. d4 {[%emt 0:02:05]} cxd4 {[%emt 0:00:06]} 8. Qxd4 {[%emt 0:00:13]} Nc6 {[%emt 0:00:52]} 9. Qf4 {[%emt 0:01:37]} O-O {[%emt 0:01:37]} 10. Rd1 {[%emt 0:00:31]} Qb8 {[%emt 0:05:52]} 11. Qxb8 {[%emt 0:09:36]} Nxb8 {[%emt 0:01:44]} 12. Bf4 {[%emt 0:02:39]} Na6 {[%emt 0:05:44]} 13. Ne5 {[%emt 0:04:55]} Bxg2 {[%emt 0:00:38]} 14. Kxg2 {[%emt 0:00:03]} Rfc8 {[%emt 0:05:00]} 15. Nxd7 {[%emt 0:06:21]} Nxd7 {[%emt 0:05:20]} 16. Rxd7 {[%emt 0:00:05]} Bf6 {[%emt 0:00:20]} 17. Rc1 {[%emt 0:00:46]} Rxc4 {[%emt 0:03:28]} 18. Nb5 {[%emt 0:02:12]} Rxc1 {[%emt 0:01:26]} 19. Bxc1 {[%emt 0:00:10]} Nb4 {[%emt 0:03:37]} 20. a3 {[%emt 0:07:57]} Nc6 {[%emt 0:04:44]} 21. Rc7 {[%emt 0:03:41]} Nd4 {[%emt 0:00:48]} 22. Nxd4 {[%emt 0:00:05]} Bxd4 {[%emt 0:00:05]} 23. f4 {[%emt 0:01:39]} h5 {[%emt 0:05:03]} 24. e3 {[%emt 0:03:13]} Bc5 {[%emt 0:02:40]} 25. Kf3 {[%emt 0:01:24]} a5 {[%emt 0:11:05]} 26. Bd2 {[%emt 0:00:46]} Kf8 {[%emt 0:03:05]} 27. Bc3 {[%emt 0:00:47]} g6 {[%emt 0:05:07]} 28. Bf6 {[%emt 0:04:17]} Ke8 {[%emt 0:02:44]} 29. Rb7 {[%emt 0:11:58]} Rc8 {[%emt 0:04:25]} 30. Ke4 {[%emt 0:00:30]} Rc6 {[%emt 0:02:32]} 31. h3 {[%emt 0:00:22]} Bd6 {[%emt 0:01:12]} 32. g4 {[%emt 0:01:37]} hxg4 {[%emt 0:01:54]} 33. hxg4 {[%emt 0:00:08]} Bc7 {[%emt 0:03:52]} 34. g5 {[%emt 0:04:22]} Kd7 {[%emt 0:03:14]} 35. Ra7 {[%emt 0:00:28]} Rc4+ {[%emt 0:01:13]} 36. Kd3 {[%emt 0:00:20]} Rc5 {[%emt 0:01:03]} 37. Bd4 {[%emt 0:04:41]} Rd5 {[%emt 0:02:48]} 38. e4 {[%emt 0:03:07]} Rd6 {[%emt 0:00:22]} 39. Kc4 {[%emt 0:00:04]} Kc6 {[%emt 0:00:49]} 40. Be5 {[%emt 0:00:00]} b5+ {[%emt 0:00:00]} 41. Kc3 {[%emt 0:05:35]} Rd7 {[%emt 0:05:51]} 42. Rxc7+ {[%emt 0:00:38]} Rxc7 {[%emt 0:00:04]} 43. Bxc7 {[%emt 0:00:03]} Kxc7 {[%emt 0:00:06]} 44. Kd4 {[%emt 0:00:02]} Kd6 {[%emt 0:04:33]} 45. b3 {[%emt 0:00:06]} Kc6 {[%emt 0:01:49]} 46. Ke5 {[%emt 0:01:37]} Kd7 {[%emt 0:00:25]} 47. Kf6 {[%emt 0:00:27]} Ke8 {[%emt 0:01:24]} 48. f5 {[%emt 0:04:09]} exf5 {[%emt 0:00:09]} 49. exf5 {[%emt 0:00:03]} gxf5 {[%emt 0:00:09]} 50. Kxf5 {[%emt 0:00:02]} Kf8 {[%emt 0:03:41]} 51. Kf6 {[%emt 0:00:21]} Ke8 {[%emt 0:00:35]} 52. Ke5 {[%emt 0:06:11]} Kf8 {[%emt 0:00:23]} 53. Kd5 {[%emt 0:11:38]} Kg7 {[%emt 0:01:40]} 54. Kc5 {[%emt 0:00:39]} Kg6 {[%emt 0:01:48]} 55. Kxb5 {[%emt 0:06:41]} Kxg5 {[%emt 0:00:08]} 56. Kxa5 {[%emt 0:00:17]} f5 {[%emt 0:00:10]} 57. b4 {[%emt 0:00:09]} f4 {[%emt 0:00:06]} 58. b5 {[%emt 0:00:02]} f3 {[%emt 0:00:08]} 59. b6 {[%emt 0:00:03]} f2 {[%emt 0:00:05]} 60. b7 {[%emt 0:00:02]} f1=Q {[%emt 0:00:06]} 61. b8=Q {[%emt 0:00:02]} Qd1 {[%emt 0:03:48]} 62. a4 {[%emt 0:00:22]} Kf6 {[%emt 0:00:39]} 63. Qf8+ {[%emt 0:00:21]} Ke6 {[%emt 0:00:53]} 64. Qe8+ {[%emt 0:00:05]} Kf6 {[%emt 0:00:41]} 65. Kb6 {[%emt 0:03:57]} Qd4+ {[%emt 0:00:58]} 66. Kb7 {[%emt 0:00:23]} Qd2 {[%emt 0:03:42]} 67. Qb5 {[%emt 0:00:47]} Ke7 {[%emt 0:02:46]} 68. a5 {[%emt 0:00:06]} Qg2+ {[%emt 0:01:12]} 69. Ka7 {[%emt 0:00:35]} Qa2 {[%emt 0:05:04]} 70. a6 {[%emt 0:00:21]} Kd8 {[%emt 0:04:27]} 71. Qb6+ {[%emt 0:05:58]} Kc8 {[%emt 0:01:26]} 72. Qc6+ {[%emt 0:02:06]} Kd8 {[%emt 0:00:15]} 73. Ka8 {[%emt 0:00:14]} Qa5 {[%emt 0:01:00]} 74. Kb7 {[%emt 0:01:19]} Qe1 {[%emt 0:03:12]} 75. Qd5+ {[%emt 0:02:46]} Ke8 {[%emt 0:00:51]} 76. a7 {[%emt 0:00:46]} Qb4+ {[%emt 0:00:40]} 77. Ka6 {[%emt 0:00:36]} Qa3+ {[%emt 0:00:41]} 78. Kb6 {[%emt 0:00:05]} Qe3+ {[%emt 0:01:07]} 79. Qc5 {[%emt 0:00:04]} 1-0

[Event "12th Asrian Memorial 2019"]
[Site "Yerevan"]
[Date "2019.06.14"]
[Round "4.4"]
[White "Davtyan, Artur"]
[Black "Petrosian, Tigran L."]
[Result "1/2-1/2"]
[ECO "A85"]
[WhiteElo "2431"]
[BlackElo "2612"]
[Annotator "ChessBase"]
[PlyCount "20"]
[EventDate "2019.06.11"]
[EventType "swiss"]
[EventCountry "ARM"]
[SourceTitle "playchess.com"]
[Source "ChessBase"]
[SourceQuality "1"]
[TimeControl "40/5400+30:1800+30"]

1. d4 {[%emt 0:03:04]} f5 {[%emt 0:01:12]} 2. c4 {[%emt 0:00:43]} Nf6 {[%emt 0:00:16]} 3. Nc3 {[%emt 0:00:08]} g6 {[%emt 0:01:07]} 4. Bf4 {[%emt 0:03:27]} Bg7 {[%emt 0:00:06]} 5. e3 {[%emt 0:01:07]} d6 {[%emt 0:00:34]} 6. Be2 {[%emt 0:00:15]} O-O {[%emt 0:00:28]} 7. Nf3 {[%emt 0:06:59]} Nh5 {[%emt 0:13:37]} 8. O-O {[%emt 0:15:18]} Nxf4 {[%emt 0:14:19]} 9. exf4 {[%emt 0:00:06]} c5 {[%emt 0:00:25]} 10. dxc5 {[%emt 0:05:34]} dxc5 1/2-1/2

[Event "12th Asrian Memorial 2019"]
[Site "Yerevan"]
[Date "2019.06.14"]
[Round "4.5"]
[White "Andriasian, Zaven"]
[Black "Gharibyan, Mamikon"]
[Result "1/2-1/2"]
[ECO "A06"]
[WhiteElo "2600"]
[BlackElo "2320"]
[Annotator "ChessBase"]
[PlyCount "120"]
[EventDate "2019.06.11"]
[EventType "swiss"]
[EventCountry "ARM"]
[SourceTitle "playchess.com"]
[Source "ChessBase"]
[SourceQuality "1"]
[TimeControl "40/5400+30:1800+30"]

1. Nf3 {[%emt 0:00:00]} d5 {[%emt 0:00:31]} 2. g3 {[%emt 0:00:04]} g6 {[%emt 0:00:51]} 3. c4 {[%emt 0:00:56]} dxc4 {[%emt 0:00:54]} 4. Na3 {[%emt 0:00:15]} Nc6 {[%emt 0:00:43]} 5. Nxc4 {[%emt 0:00:39]} Bg7 {[%emt 0:00:20]} 6. Bg2 {[%emt 0:00:20]} e5 {[%emt 0:01:01]} 7. d3 {[%emt 0:00:56]} Nge7 {[%emt 0:00:22]} 8. O-O {[%emt 0:01:45]} O-O {[%emt 0:00:21]} 9. Bd2 {[%emt 0:00:46]} Be6 {[%emt 0:13:09]} 10. Rc1 {[%emt 0:02:37]} Qd7 {[%emt 0:06:30]} 11. Bc3 {[%emt 0:06:29]} f6 {[%emt 0:02:08]} 12. Nfd2 {[%emt 0:08:31]} Rad8 {[%emt 0:04:07]} 13. a4 {[%emt 0:09:21]} Nd5 {[%emt 0:06:18]} 14. a5 {[%emt 0:03:17]} b5 {[%emt 0:02:27]} 15. axb6 {[%emt 0:05:03]} axb6 {[%emt 0:00:05]} 16. Ne4 {[%emt 0:00:52]} Nd4 {[%emt 0:10:55]} 17. Re1 {[%emt 0:02:18]} Kh8 {[%emt 0:04:12]} 18. Ra1 {[%emt 0:05:48]} f5 {[%emt 0:04:54]} 19. Bxd4 {[%emt 0:04:54]} exd4 {[%emt 0:00:18]} 20. Ng5 {[%emt 0:00:10]} Bg8 {[%emt 0:00:30]} 21. Nf3 {[%emt 0:02:34]} Rfe8 {[%emt 0:01:06]} 22. Qd2 {[%emt 0:06:03]} Re7 {[%emt 0:04:32]} 23. Ra7 {[%emt 0:04:44]} Rde8 {[%emt 0:01:21]} 24. Kf1 {[%emt 0:02:07]} Qc6 {[%emt 0:05:26]} 25. Raa1 {[%emt 0:03:10]} b5 {[%emt 0:09:35]} 26. Na3 {[%emt 0:01:06]} Qb6 {[%emt 0:00:07]} 27. Nc2 {[%emt 0:00:55]} c5 {[%emt 0:00:21]} 28. Qa5 {[%emt 0:00:46]} Qb8 {[%emt 0:01:57]} 29. Na3 {[%emt 0:02:43]} Rb7 {[%emt 0:00:39]} 30. Qd2 {[%emt 0:03:17]} Qd6 {[%emt 0:07:20]} 31. Qa5 {[%emt 0:04:03]} Reb8 {[%emt 0:01:28]} 32. Qd2 {[%emt 0:01:29]} Nb4 {[%emt 0:02:51]} 33. Red1 {[%emt 0:05:39]} Bb3 {[%emt 0:01:47]} 34. Rdc1 {[%emt 0:07:59]} Rc7 {[%emt 0:00:07]} 35. Qf4 {[%emt 0:01:56]} Qxf4 {[%emt 0:02:23]} 36. gxf4 {[%emt 0:00:01]} Na2 {[%emt 0:01:31]} 37. Re1 {[%emt 0:01:06]} Bg8 {[%emt 0:00:57]} 38. Ne5 {[%emt 0:02:24]} Nb4 {[%emt 0:00:52]} 39. Rec1 {[%emt 0:00:33]} Bxe5 {[%emt 0:03:27]} 40. fxe5 {[%emt 0:00:00]} c4 {[%emt 0:00:00]} 41. dxc4 {[%emt 0:08:25]} bxc4 {[%emt 0:01:02]} 42. Nc2 {[%emt 0:00:06]} d3 {[%emt 0:07:19]} 43. Nxb4 {[%emt 0:02:35]} dxe2+ {[%emt 0:00:04]} 44. Ke1 {[%emt 0:01:02]} Rxb4 {[%emt 0:00:08]} 45. Rc2 {[%emt 0:00:09]} Be6 {[%emt 0:06:26]} 46. Rxe2 {[%emt 0:06:26]} Kg7 {[%emt 0:00:35]} 47. Ra3 {[%emt 0:04:20]} Rb3 {[%emt 0:04:33]} 48. Rxb3 {[%emt 0:02:45]} cxb3 {[%emt 0:00:02]} 49. f4 {[%emt 0:00:09]} Rc4 {[%emt 0:02:54]} 50. Rf2 {[%emt 0:00:15]} h6 {[%emt 0:02:38]} 51. h4 {[%emt 0:00:54]} g5 {[%emt 0:00:30]} 52. hxg5 {[%emt 0:00:28]} hxg5 {[%emt 0:00:03]} 53. fxg5 {[%emt 0:00:08]} Kg6 {[%emt 0:00:07]} 54. Bf1 {[%emt 0:06:05]} Rc5 {[%emt 0:07:17]} 55. Bd3 {[%emt 0:00:23]} Rxe5+ {[%emt 0:00:50]} 56. Re2 {[%emt 0:00:16]} Rxe2+ {[%emt 0:00:04]} 57. Kxe2 {[%emt 0:00:07]} Kxg5 {[%emt 0:00:04]} 58. Bxf5 {[%emt 0:00:10]} Bxf5 {[%emt 0:00:20]} 59. Kd2 {[%emt 0:00:03]} Kf4 {[%emt 0:01:19]} 60. Kc1 {[%emt 0:00:17]} Ke3 {[%emt 0:03:23]} 1/2-1/2

[Event "12th Asrian Memorial 2019"]
[Site "Yerevan"]
[Date "2019.06.14"]
[Round "4.6"]
[White "Chibukhchian, Artur"]
[Black "Kulaots, Kaido"]
[Result "1/2-1/2"]
[ECO "A04"]
[WhiteElo "2374"]
[BlackElo "2574"]
[Annotator "ChessBase"]
[PlyCount "87"]
[EventDate "2019.06.11"]
[EventType "swiss"]
[EventCountry "ARM"]
[SourceTitle "playchess.com"]
[Source "ChessBase"]
[SourceQuality "1"]
[TimeControl "40/5400+30:1800+30"]

1. Nf3 {[%emt 0:01:30]} g6 {[%emt 0:00:00]} 2. e4 {[%emt 0:01:30]} c5 {[%emt 0:00:28]} 3. d4 {[%emt 0:00:10]} cxd4 {[%emt 0:00:19]} 4. Qxd4 {[%emt 0:00:47]} Nf6 {[%emt 0:00:18]} 5. e5 {[%emt 0:01:23]} Nc6 {[%emt 0:00:20]} 6. Qa4 {[%emt 0:04:31]} Nd5 {[%emt 0:01:03]} 7. Qe4 {[%emt 0:07:05]} Ndb4 {[%emt 0:09:41]} 8. Bb5 {[%emt 0:11:33]} Qa5 {[%emt 0:14:48]} 9. Nc3 {[%emt 0:13:17]} d5 {[%emt 0:02:36]} 10. Qe2 {[%emt 0:09:37]} Bg4 {[%emt 0:07:22]} 11. O-O {[%emt 0:05:00]} e6 {[%emt 0:05:23]} 12. a3 {[%emt 0:06:35]} Bxf3 {[%emt 0:06:35]} 13. Qxf3 {[%emt 0:03:12]} Nxc2 {[%emt 0:11:38]} 14. Nxd5 {[%emt 0:15:48]} O-O-O {[%emt 0:04:34]} 15. Bxc6 {[%emt 0:01:47]} bxc6 {[%emt 0:01:02]} 16. Nc3 {[%emt 0:10:58]} Nxa1 {[%emt 0:00:15]} 17. Bg5 {[%emt 0:00:57]} Rd7 {[%emt 0:01:06]} 18. Qxc6+ {[%emt 0:01:10]} Qc7 {[%emt 0:00:13]} 19. Qa8+ {[%emt 0:01:07]} Qb8 {[%emt 0:00:05]} 20. Qc6+ {[%emt 0:00:02]} Rc7 {[%emt 0:18:51]} 21. Qe8+ {[%emt 0:00:05]} Kb7 {[%emt 0:00:04]} 22. Qa4 {[%emt 0:00:12]} Ka8 {[%emt 0:01:21]} 23. Rxa1 {[%emt 0:00:02]} Be7 {[%emt 0:01:59]} 24. Qe4+ {[%emt 0:02:52]} Qb7 {[%emt 0:00:35]} 25. Bxe7 {[%emt 0:00:33]} Rxe7 {[%emt 0:00:55]} 26. Rd1 {[%emt 0:00:26]} Rb8 {[%emt 0:01:49]} 27. b4 {[%emt 0:00:45]} Rc8 {[%emt 0:01:05]} 28. Qe3 {[%emt 0:00:31]} Rd7 {[%emt 0:01:16]} 29. Re1 {[%emt 0:00:31]} Qb6 {[%emt 0:01:59]} 30. Qf3+ {[%emt 0:00:32]} Qc6 {[%emt 0:00:27]} 31. Ne4 {[%emt 0:00:26]} Rd4 {[%emt 0:00:59]} 32. h3 {[%emt 0:00:29]} Qd5 {[%emt 0:00:50]} 33. Re3 {[%emt 0:00:28]} Rc7 {[%emt 0:03:45]} 34. Ng5 {[%emt 0:00:34]} Qxf3 {[%emt 0:01:44]} 35. Rxf3 {[%emt 0:00:02]} Rdc4 {[%emt 0:01:03]} 36. Nxf7 {[%emt 0:00:18]} Rc3 {[%emt 0:00:23]} 37. Rf6 {[%emt 0:00:03]} Rxa3 {[%emt 0:00:26]} 38. Nd6 {[%emt 0:00:37]} a6 {[%emt 0:00:38]} 39. Rxe6 {[%emt 0:01:09]} Rb3 {[%emt 0:00:48]} 40. Re8+ {[%emt 0:00:00]} Ka7 {[%emt 0:00:00]} 41. e6 {[%emt 0:18:50]} Rxb4 {[%emt 0:00:45]} 42. e7 {[%emt 0:01:04]} Rb1+ {[%emt 0:00:48]} 43. Kh2 {[%emt 0:00:06]} Re1 {[%emt 0:00:08]} 44. f4 {[%emt 0:01:26]} 1/2-1/2

[Event "12th Asrian Memorial 2019"]
[Site "Yerevan"]
[Date "2019.06.14"]
[Round "4.7"]
[White "Der Manuelian, Haik"]
[Black "Vaganian, Rafael A"]
[Result "1/2-1/2"]
[ECO "A40"]
[WhiteElo "2309"]
[BlackElo "2526"]
[Annotator "ChessBase"]
[PlyCount "61"]
[EventDate "2019.06.11"]
[EventType "swiss"]
[EventCountry "ARM"]
[SourceTitle "playchess.com"]
[Source "ChessBase"]
[SourceQuality "1"]
[TimeControl "40/5400+30:1800+30"]

1. d4 {[%emt 0:00:00]} Nf6 {[%emt 0:00:00]} 2. c4 {[%emt 0:00:00]} e6 {[%emt 0:01:58]} 3. g3 {[%emt 0:00:00]} d5 {[%emt 0:00:10]} 4. Nf3 {[%emt 0:00:21]} Bb4+ {[%emt 0:00:09]} 5. Bd2 {[%emt 0:00:06]} Be7 {[%emt 0:00:05]} 6. Bg2 {[%emt 0:00:08]} c6 {[%emt 0:00:04]} 7. Qc2 {[%emt 0:00:14]} Nbd7 {[%emt 0:00:17]} 8. O-O {[%emt 0:00:59]} b6 {[%emt 0:00:12]} 9. Bf4 {[%emt 0:05:19]} Bb7 {[%emt 0:01:30]} 10. Rd1 {[%emt 0:06:00]} Rc8 {[%emt 0:06:13]} 11. Qa4 {[%emt 0:06:31]} a6 {[%emt 0:00:46]} 12. Qb3 {[%emt 0:10:55]} dxc4 {[%emt 0:02:52]} 13. Qxc4 {[%emt 0:00:21]} b5 {[%emt 0:00:04]} 14. Qb3 {[%emt 0:01:34]} c5 {[%emt 0:03:41]} 15. dxc5 {[%emt 0:01:54]} Bd5 {[%emt 0:03:17]} 16. Qb4 {[%emt 0:14:37]} Bxc5 {[%emt 0:03:52]} 17. Qe1 {[%emt 0:00:04]} Ne4 {[%emt 0:17:33]} 18. e3 {[%emt 0:00:42]} Qf6 {[%emt 0:03:30]} 19. Nc3 {[%emt 0:01:54]} Nxc3 {[%emt 0:02:15]} 20. bxc3 {[%emt 0:00:06]} Bxf3 {[%emt 0:02:29]} 21. Bxf3 {[%emt 0:00:31]} e5 {[%emt 0:01:10]} 22. Bg4 {[%emt 0:02:31]} Rc7 {[%emt 0:00:27]} 23. Rd5 {[%emt 0:02:19]} exf4 {[%emt 0:01:07]} 24. Bxd7+ {[%emt 0:02:07]} Rxd7 {[%emt 0:00:09]} 25. Rxc5 {[%emt 0:00:06]} fxg3 {[%emt 0:00:09]} 26. Rc8+ {[%emt 0:00:53]} Rd8 {[%emt 0:00:05]} 27. Rxd8+ {[%emt 0:00:06]} Qxd8 {[%emt 0:00:05]} 28. hxg3 {[%emt 0:00:21]} O-O {[%emt 0:00:46]} 29. a4 {[%emt 0:01:42]} g6 {[%emt 0:05:17]} 30. axb5 {[%emt 0:06:29]} axb5 {[%emt 0:00:16]} 31. Qe2 {[%emt 0:03:38]} 1/2-1/2

[Event "12th Asrian Memorial 2019"]
[Site "Yerevan"]
[Date "2019.06.14"]
[Round "4.8"]
[White "Sargsyan, Shant"]
[Black "Hoghmrtsyan, Artur"]
[Result "1-0"]
[ECO "C58"]
[WhiteElo "2512"]
[BlackElo "2309"]
[Annotator "ChessBase"]
[PlyCount "87"]
[EventDate "2019.06.11"]
[EventType "swiss"]
[EventCountry "ARM"]
[SourceTitle "playchess.com"]
[Source "ChessBase"]
[SourceQuality "1"]
[TimeControl "40/5400+30:1800+30"]

1. e4 {[%emt 0:00:25]} e5 {[%emt 0:00:00]} 2. Nf3 {[%emt 0:00:17]} Nc6 {[%emt 0:00:00]} 3. Bc4 {[%emt 0:00:44]} Nf6 {[%emt 0:00:00]} 4. Ng5 {[%emt 0:00:45]} d5 {[%emt 0:00:02]} 5. exd5 {[%emt 0:00:07]} Na5 {[%emt 0:00:04]} 6. Bb5+ {[%emt 0:00:28]} c6 {[%emt 0:00:07]} 7. dxc6 {[%emt 0:00:19]} bxc6 {[%emt 0:00:05]} 8. Bd3 {[%emt 0:00:52]} Nd5 {[%emt 0:10:36]} 9. Nf3 {[%emt 0:00:29]} Nf4 {[%emt 0:00:06]} 10. Bf1 {[%emt 0:01:03]} Ng6 {[%emt 0:10:55]} 11. Nc3 {[%emt 0:08:08]} Bc5 {[%emt 0:03:27]} 12. d3 {[%emt 0:03:48]} O-O 13. Be2 f5 {[%emt 0:12:41]} 14. O-O {[%emt 0:01:46]} Nb7 15. d4 {[%emt 0:10:42]} exd4 {[%emt 0:21:04]} 16. Na4 {[%emt 0:01:23]} Be7 {[%emt 0:00:31]} 17. Qxd4 {[%emt 0:00:54]} Be6 {[%emt 0:01:27]} 18. Qxd8 {[%emt 0:03:47]} Rfxd8 {[%emt 0:01:38]} 19. Re1 {[%emt 0:11:40]} Nc5 {[%emt 0:04:32]} 20. Nxc5 {[%emt 0:06:02]} Bxc5 {[%emt 0:00:02]} 21. Bg5 {[%emt 0:01:08]} Rf8 {[%emt 0:04:17]} 22. Bd3 {[%emt 0:06:54]} Bd5 {[%emt 0:01:45]} 23. Be3 {[%emt 0:00:50]} Bd6 {[%emt 0:06:52]} 24. Rad1 {[%emt 0:03:38]} Rab8 {[%emt 0:03:24]} 25. b3 {[%emt 0:01:35]} Bb4 {[%emt 0:00:55]} 26. Bd2 {[%emt 0:01:23]} Bxf3 {[%emt 0:01:11]} 27. gxf3 {[%emt 0:00:51]} Nh4 {[%emt 0:01:12]} 28. Bc4+ {[%emt 0:00:22]} Kh8 {[%emt 0:00:05]} 29. Bxb4 {[%emt 0:00:13]} Rxb4 {[%emt 0:00:35]} 30. Re7 {[%emt 0:00:44]} Nxf3+ {[%emt 0:04:54]} 31. Kh1 {[%emt 0:01:54]} Rbb8 {[%emt 0:00:10]} 32. Rxa7 {[%emt 0:04:08]} Ne5 {[%emt 0:00:56]} 33. Bf1 {[%emt 0:01:18]} f4 {[%emt 0:01:31]} 34. a4 {[%emt 0:01:26]} g5 {[%emt 0:03:30]} 35. a5 {[%emt 0:00:56]} Rbd8 {[%emt 0:01:31]} 36. Rxd8 {[%emt 0:01:31]} Rxd8 {[%emt 0:00:05]} 37. Re7 {[%emt 0:00:10]} Ng6 {[%emt 0:04:43]} 38. Re1 {[%emt 0:00:22]} Kg7 {[%emt 0:00:31]} 39. a6 {[%emt 0:00:16]} Kf6 {[%emt 0:00:21]} 40. b4 {[%emt 0:00:00]} Ne5 {[%emt 0:00:00]} 41. c4 {[%emt 0:03:41]} Ra8 {[%emt 0:11:24]} 42. b5 {[%emt 0:00:23]} f3 {[%emt 0:01:35]} 43. Rb1 {[%emt 0:01:48]} Nd7 {[%emt 0:01:52]} 44. bxc6 {[%emt 0:00:57]} 1-0